[Event "CZE-ch 2020"]
[Site "Pilsen"]
[Date "2020.08.25"]
[Round "3.31"]
[White "Koubova, Anna Marie"]
[Black "Novotny, Martin"]
[Result "1/2-1/2"]
[ECO "D85"]
[WhiteElo "2099"]
[BlackElo "2180"]
[Annotator "ChessBase"]
[PlyCount "65"]
[EventDate "2020.08.23"]
[EventType "swiss"]
[EventCountry "CZE"]
[SourceTitle "playchess.com"]
[Source "ChessBase"]
[SourceQuality "1"]
[TimeControl "40/5400+30:1800+30"]

1. d4 {[%emt 0:00:00]} Nf6 {[%emt 0:00:00]} 2. c4 {[%emt 0:00:13]} g6 {[%emt 0:00:12]} 3. Nc3 {[%emt 0:00:24]} d5 {[%emt 0:00:35]} 4. cxd5 {[%emt 0:00:58]} Nxd5 {[%emt 0:00:20]} 5. e4 {[%emt 0:00:33]} Nxc3 {[%emt 0:00:22]} 6. bxc3 {[%emt 0:00:17]} Bg7 {[%emt 0:00:23]} 7. Nf3 {[%emt 0:02:55]} c5 {[%emt 0:00:20]} 8. Bb5+ {[%emt 0:02:40]} Nc6 {[%emt 0:06:39]} 9. d5 {[%emt 0:03:55]} Qa5 {[%emt 0:03:45]} 10. Rb1 {[%emt 0:03:53]} Bxc3+ {[%emt 0:02:19]} 11. Bd2 {[%emt 0:03:44]} a6 {[%emt 0:01:46]} 12. Bxc6+ {[%emt 0:07:04]} bxc6 {[%emt 0:00:40]} 13. dxc6 {[%emt 0:01:14]} Be6 {[%emt 0:03:08]} 14. Rc1 {[%emt 0:00:52]} Bxd2+ {[%emt 0:01:33]} 15. Qxd2 {[%emt 0:00:21]} Qb4 {[%emt 0:05:36]} 16. O-O {[%emt 0:01:07]} Qxd2 {[%emt 0:01:59]} 17. Nxd2 {[%emt 0:00:10]} O-O-O {[%emt 0:00:53]} 18. Nb3 {[%emt 0:01:21]} Bxb3 {[%emt 0:01:36]} 19. axb3 {[%emt 0:00:24]} Rd3 {[%emt 0:01:26]} 20. Rxc5 {[%emt 0:01:15]} Rxb3 {[%emt 0:00:17]} 21. Ra1 {[%emt 0:00:59]} Rb6 {[%emt 0:00:43]} 22. Rca5 {[%emt 0:01:00]} Rxc6 {[%emt 0:01:27]} 23. Rxa6 {[%emt 0:00:19]} Rxa6 {[%emt 0:00:46]} 24. Rxa6 {[%emt 0:00:07]} Kd7 {[%emt 0:00:45]} 25. Kf1 {[%emt 0:00:56]} Rc8 {[%emt 0:00:49]} 26. Ke2 {[%emt 0:00:21]} Rc3 {[%emt 0:00:49]} 27. Kd2 {[%emt 0:00:36]} Rb3 {[%emt 0:00:27]} 28. Kc2 {[%emt 0:00:17]} Rb8 {[%emt 0:00:24]} 29. Kd3 {[%emt 0:00:31]} Rb2 {[%emt 0:01:38]} 30. Ke3 {[%emt 0:00:14]} Ke8 {[%emt 0:01:14]} 31. Ra8+ {[%emt 0:01:03]} Kd7 {[%emt 0:00:12]} 32. Ra6 {[%emt 0:00:06]} Ke8 {[%emt 0:00:12]} 33. Ra8+ {[%emt 0:00:09]} 1/2-1/2

[Event "CZE-ch 2020"]
[Site "Pilsen"]
[Date "2020.08.25"]
[Round "3.32"]
[White "Pychova, Nela"]
[Black "Malinovsky, Petr"]
[Result "1/2-1/2"]
[ECO "A06"]
[WhiteElo "2159"]
[BlackElo "2081"]
[Annotator "ChessBase"]
[PlyCount "44"]
[EventDate "2020.08.23"]
[EventType "swiss"]
[EventCountry "CZE"]
[SourceTitle "playchess.com"]
[Source "ChessBase"]
[SourceQuality "1"]
[TimeControl "40/5400+30:1800+30"]

1. Nf3 {[%emt 0:00:00]} d5 {[%emt 0:00:00]} 2. g3 {[%emt 0:00:00]} e6 {[%emt 0:00:00]} 3. Bg2 {[%emt 0:00:00]} Nf6 {[%emt 0:00:12]} 4. O-O {[%emt 0:00:02]} Be7 {[%emt 0:00:10]} 5. d3 {[%emt 0:00:19]} O-O {[%emt 0:00:16]} 6. Nbd2 {[%emt 0:00:04]} b6 {[%emt 0:02:17]} 7. c4 {[%emt 0:05:16]} Bb7 {[%emt 0:00:26]} 8. Qc2 {[%emt 0:11:37]} c5 {[%emt 0:01:15]} 9. a3 {[%emt 0:10:41]} Nbd7 {[%emt 0:02:45]} 10. b3 {[%emt 0:01:57]} Qc7 {[%emt 0:01:18]} 11. Bb2 {[%emt 0:05:32]} Rad8 {[%emt 0:02:26]} 12. Rac1 {[%emt 0:06:06]} Qb8 {[%emt 0:01:34]} 13. Qb1 {[%emt 0:03:20]} d4 {[%emt 0:09:38]} 14. b4 {[%emt 0:04:55]} e5 {[%emt 0:02:44]} 15. Ba1 {[%emt 0:03:16]} Qa8 {[%emt 0:02:42]} 16. Nh4 {[%emt 0:01:50]} Bxg2 {[%emt 0:02:30]} 17. Nxg2 {[%emt 0:00:03]} Nh5 {[%emt 0:06:02]} 18. Rc2 {[%emt 0:04:55]} f5 {[%emt 0:01:53]} 19. Rb2 {[%emt 0:03:41]} Bg5 {[%emt 0:08:37]} 20. Nf3 {[%emt 0:03:12]} Be7 {[%emt 0:05:23]} 21. Nd2 {[%emt 0:02:17]} Bg5 {[%emt 0:00:46]} 22. Nf3 {[%emt 0:00:57]} Be7 {[%emt 0:00:20]} 1/2-1/2

[Event "CZE-ch 2020"]
[Site "Pilsen"]
[Date "2020.08.25"]
[Round "3.33"]
[White "Nemec, Jachym"]
[Black "Laurincova, Kristyna"]
[Result "1-0"]
[ECO "D92"]
[WhiteElo "2150"]
[BlackElo "2008"]
[Annotator "ChessBase"]
[PlyCount "63"]
[EventDate "2020.08.23"]
[EventType "swiss"]
[EventCountry "CZE"]
[SourceTitle "playchess.com"]
[Source "ChessBase"]
[SourceQuality "1"]
[TimeControl "40/5400+30:1800+30"]

1. d4 {[%emt 0:00:00]} Nf6 {[%emt 0:00:00]} 2. Nf3 {[%emt 0:00:00]} g6 {[%emt 0:00:00]} 3. c4 {[%emt 0:00:00]} Bg7 {[%emt 0:00:00]} 4. Nc3 {[%emt 0:00:03]} d5 {[%emt 0:00:00]} 5. Bf4 {[%emt 0:00:07]} O-O {[%emt 0:00:54]} 6. Rc1 {[%emt 0:01:30]} c6 {[%emt 0:07:51]} 7. e3 {[%emt 0:00:55]} Qa5 {[%emt 0:05:28]} 8. Bd3 {[%emt 0:00:26]} Ne4 {[%emt 0:14:14]} 9. Bxe4 {[%emt 0:05:43]} dxe4 {[%emt 0:00:06]} 10. Ng5 {[%emt 0:01:54]} f5 {[%emt 0:02:22]} 11. Qb3 {[%emt 0:01:10]} Qb6 {[%emt 0:00:53]} 12. Nb5 {[%emt 0:00:25]} Qa5+ {[%emt 0:08:13]} 13. Rc3 {[%emt 0:47:51]} c5 {[%emt 0:03:00]} 14. h4 {[%emt 0:07:18]} Nc6 {[%emt 0:06:36]} 15. O-O {[%emt 0:09:37]} e5 {[%emt 0:07:55]} 16. dxe5 {[%emt 0:00:40]} Nxe5 {[%emt 0:02:27]} 17. Rd1 {[%emt 0:01:15]} h6 {[%emt 0:00:41]} 18. Nh3 {[%emt 0:00:04]} Be6 {[%emt 0:01:44]} 19. Bxe5 {[%emt 0:01:31]} Bxe5 {[%emt 0:00:05]} 20. Rcc1 {[%emt 0:00:20]} Rad8 {[%emt 0:17:36]} 21. Nf4 {[%emt 0:02:24]} Bxf4 {[%emt 0:00:27]} 22. exf4 {[%emt 0:00:07]} Rd2 {[%emt 0:10:06]} 23. Nc3 {[%emt 0:00:36]} Rfd8 {[%emt 0:01:57]} 24. Rxd2 {[%emt 0:00:53]} Rxd2 {[%emt 0:00:01]} 25. Qxb7 {[%emt 0:00:45]} Qd8 {[%emt 0:06:24]} 26. Qc6 {[%emt 0:00:53]} Bf7 {[%emt 0:01:20]} 27. Qxc5 {[%emt 0:02:31]} Qxh4 {[%emt 0:02:07]} 28. Nd5 {[%emt 0:00:58]} Rxb2 {[%emt 0:00:48]} 29. Qd4 {[%emt 0:00:41]} e3 {[%emt 0:00:33]} 30. Nf6+ {[%emt 0:00:29]} Qxf6 {[%emt 0:00:22]} 31. Qxf6 {[%emt 0:00:05]} exf2+ {[%emt 0:00:04]} 32. Kf1 {[%emt 0:00:34]} 1-0

[Event "CZE-ch 2020"]
[Site "Pilsen"]
[Date "2020.08.25"]
[Round "3.35"]
[White "Riha, Vojtech"]
[Black "Janous, Marek"]
[Result "1-0"]
[ECO "B20"]
[WhiteElo "2270"]
[BlackElo "1968"]
[Annotator "ChessBase"]
[PlyCount "51"]
[EventDate "2020.08.23"]
[EventType "swiss"]
[EventCountry "CZE"]
[SourceTitle "playchess.com"]
[Source "ChessBase"]
[SourceQuality "1"]
[TimeControl "40/5400+30:1800+30"]

1. e4 {[%emt 0:00:00]} c5 {[%emt 0:00:00]} 2. b4 {[%emt 0:00:00]} cxb4 {[%emt 0:00:32]} 3. a3 {[%emt 0:00:07]} bxa3 {[%emt 0:00:23]} 4. Bxa3 {[%emt 0:01:05]} d6 {[%emt 0:00:13]} 5. d4 {[%emt 0:00:41]} g6 {[%emt 0:00:23]} 6. f4 {[%emt 0:01:29]} Bg7 {[%emt 0:01:00]} 7. Nf3 {[%emt 0:00:59]} Nc6 {[%emt 0:02:09]} 8. c3 {[%emt 0:01:53]} a6 {[%emt 0:15:42]} 9. Bd3 {[%emt 0:00:53]} Bd7 {[%emt 0:03:11]} 10. O-O {[%emt 0:00:52]} Rc8 {[%emt 0:01:45]} 11. e5 {[%emt 0:13:33]} dxe5 {[%emt 0:13:37]} 12. fxe5 {[%emt 0:00:22]} Nh6 {[%emt 0:00:45]} 13. Nbd2 {[%emt 0:04:05]} Bf5 {[%emt 0:12:01]} 14. Ne4 {[%emt 0:02:49]} O-O {[%emt 0:01:29]} 15. Kh1 {[%emt 0:07:20]} Re8 {[%emt 0:10:09]} 16. Nfg5 {[%emt 0:13:32]} Qd5 {[%emt 0:12:52]} 17. Qe2 {[%emt 0:07:19]} Bg4 {[%emt 0:08:13]} 18. Qe3 {[%emt 0:05:15]} Nf5 {[%emt 0:05:45]} 19. Qf4 {[%emt 0:02:45]} h6 {[%emt 0:02:11]} 20. Qxg4 {[%emt 0:02:00]} hxg5 {[%emt 0:01:59]} 21. Rxf5 {[%emt 0:05:21]} gxf5 {[%emt 0:00:41]} 22. Qxf5 {[%emt 0:00:11]} Qe6 {[%emt 0:01:34]} 23. Nf6+ {[%emt 0:00:24]} Bxf6 {[%emt 0:02:07]} 24. Qh7+ {[%emt 0:00:06]} Kf8 {[%emt 0:00:02]} 25. Bc4 {[%emt 0:01:45]} Qxc4 {[%emt 0:01:30]} 26. exf6 {[%emt 0:00:06]} 1-0

[Event "CZE-ch 2020"]
[Site "Pilsen"]
[Date "2020.08.25"]
[Round "3.36"]
[White "Turner, Radek"]
[Black "Jezek, Jan"]
[Result "0-1"]
[ECO "A10"]
[WhiteElo "2024"]
[BlackElo "2162"]
[Annotator "ChessBase"]
[PlyCount "116"]
[EventDate "2020.08.23"]
[EventType "swiss"]
[EventCountry "CZE"]
[SourceTitle "playchess.com"]
[Source "ChessBase"]
[SourceQuality "1"]
[TimeControl "40/5400+30:1800+30"]

1. c4 {[%emt 0:00:58]} d6 {[%emt 0:00:00]} 2. g3 {[%emt 0:00:18]} c6 {[%emt 0:00:30]} 3. Bg2 {[%emt 0:00:10]} Nf6 {[%emt 0:01:15]} 4. Nc3 {[%emt 0:00:09]} e5 {[%emt 0:01:19]} 5. e3 {[%emt 0:01:10]} Be6 {[%emt 0:00:51]} 6. b3 {[%emt 0:01:50]} Na6 {[%emt 0:02:54]} 7. Nge2 {[%emt 0:02:45]} Be7 {[%emt 0:01:02]} 8. d4 {[%emt 0:00:40]} Qc8 {[%emt 0:06:39]} 9. h3 {[%emt 0:02:31]} h5 {[%emt 0:05:53]} 10. e4 {[%emt 0:03:10]} Nc7 {[%emt 0:09:19]} 11. Ba3 {[%emt 0:05:36]} c5 {[%emt 0:03:11]} 12. dxe5 {[%emt 0:00:40]} dxe5 {[%emt 0:00:05]} 13. Nd5 {[%emt 0:00:29]} Bxd5 {[%emt 0:04:09]} 14. cxd5 {[%emt 0:00:22]} Nb5 {[%emt 0:05:46]} 15. Bb2 {[%emt 0:00:25]} Bd6 {[%emt 0:01:53]} 16. Rc1 {[%emt 0:00:58]} Qd8 {[%emt 0:00:54]} 17. O-O {[%emt 0:03:51]} h4 {[%emt 0:03:07]} 18. f4 {[%emt 0:03:12]} Nd7 {[%emt 0:05:57]} 19. a4 {[%emt 0:06:23]} Nd4 {[%emt 0:00:36]} 20. Nxd4 {[%emt 0:04:19]} cxd4 {[%emt 0:00:15]} 21. fxe5 {[%emt 0:01:45]} Nxe5 {[%emt 0:03:45]} 22. Bxd4 {[%emt 0:02:30]} hxg3 {[%emt 0:00:38]} 23. Rf5 {[%emt 0:00:53]} f6 {[%emt 0:07:32]} 24. Rh5 {[%emt 0:05:53]} Ke7 {[%emt 0:02:17]} 25. Bxe5 {[%emt 0:13:56]} Bxe5 {[%emt 0:00:48]} 26. Rxe5+ {[%emt 0:08:25]} fxe5 {[%emt 0:00:07]} 27. Qg4 {[%emt 0:00:16]} Qb6+ {[%emt 0:07:49]} 28. Kh1 {[%emt 0:00:15]} Rhg8 {[%emt 0:01:28]} 29. Qg5+ {[%emt 0:01:42]} Qf6 {[%emt 0:00:58]} 30. Qxg3 {[%emt 0:02:32]} Qf4 {[%emt 0:04:32]} 31. Qc3 {[%emt 0:04:19]} Rgc8 {[%emt 0:05:48]} 32. Qb4+ {[%emt 0:01:13]} Ke8 {[%emt 0:00:29]} 33. Qb5+ {[%emt 0:07:58]} Kf8 {[%emt 0:03:35]} 34. Rc4 {[%emt 0:08:43]} Rxc4 {[%emt 0:01:43]} 35. Qxc4 {[%emt 0:00:41]} Qf7 {[%emt 0:04:44]} 36. Qc5+ {[%emt 0:00:44]} Kg8 {[%emt 0:01:03]} 37. d6 {[%emt 0:01:40]} Qf6 {[%emt 0:03:44]} 38. Qd5+ {[%emt 0:00:42]} Kh7 {[%emt 0:00:12]} 39. Qxb7 {[%emt 0:01:55]} Rd8 {[%emt 0:00:16]} 40. d7 {[%emt 0:02:08]} Qd6 {[%emt 0:00:16]} 41. Qxa7 {[%emt 0:30:49]} Rxd7 {[%emt 0:30:12]} 42. Qf2 {[%emt 0:00:21]} Rb7 {[%emt 0:02:48]} 43. Qf5+ {[%emt 0:00:00]} g6 {[%emt 0:00:00]} 44. Qf3 {[%emt 0:00:00]} Kg7 {[%emt 0:00:00]} 45. Bf1 {[%emt 0:00:00]} Rf7 {[%emt 0:00:00]} 46. Qd3 {[%emt 0:00:00]} Qf6 {[%emt 0:00:00]} 47. Bg2 {[%emt 0:00:00]} Rc7 {[%emt 0:00:00]} 48. Bf1 {[%emt 0:00:00]} Qf2 {[%emt 0:00:00]} 49. Qe2 {[%emt 0:00:00]} Qf4 {[%emt 0:00:00]} 50. a5 {[%emt 0:00:00]} Rd7 {[%emt 0:00:00]} 51. Bg2 {[%emt 0:00:00]} Rd2 {[%emt 0:00:00]} 52. Qf1 {[%emt 0:00:00]} Rf2 {[%emt 0:00:00]} 53. Qd3 {[%emt 0:00:00]} Ra2 {[%emt 0:00:00]} 54. Kg1 {[%emt 0:00:00]} Rxa5 {[%emt 0:00:00]} 55. Bf1 {[%emt 0:00:00]} Ra2 {[%emt 0:00:00]} 56. Be2 {[%emt 0:00:00]} Rd2 {[%emt 0:00:00]} 57. Qf3 {[%emt 0:00:00]} Qxf3 {[%emt 0:00:00]} 58. Bxf3 {[%emt 0:00:00]} Rd3 {[%emt 0:00:00]} 0-1

[Event "CZE-ch 2020"]
[Site "Pilsen"]
[Date "2020.08.25"]
[Round "3.37"]
[White "Babula ml., Vlastimil"]
[Black "Hlozek, David"]
[Result "0-1"]
[ECO "B90"]
[WhiteElo "2138"]
[BlackElo "2037"]
[Annotator "ChessBase"]
[PlyCount "86"]
[EventDate "2020.08.23"]
[EventType "swiss"]
[EventCountry "CZE"]
[SourceTitle "playchess.com"]
[Source "ChessBase"]
[SourceQuality "1"]
[TimeControl "40/5400+30:1800+30"]

1. e4 {[%emt 0:00:00]} c5 {[%emt 0:00:00]} 2. Nf3 {[%emt 0:00:01]} d6 {[%emt 0:00:00]} 3. d4 {[%emt 0:00:45]} cxd4 {[%emt 0:00:00]} 4. Nxd4 {[%emt 0:00:21]} Nf6 {[%emt 0:00:00]} 5. Nc3 {[%emt 0:00:14]} a6 {[%emt 0:00:03]} 6. Be3 {[%emt 0:00:27]} e6 {[%emt 0:01:17]} 7. f3 {[%emt 0:00:47]} Qc7 {[%emt 0:04:11]} 8. Qd2 {[%emt 0:01:03]} Nbd7 {[%emt 0:01:10]} 9. g4 {[%emt 0:04:43]} Ne5 {[%emt 0:03:23]} 10. O-O-O {[%emt 0:03:19]} b5 {[%emt 0:02:05]} 11. a3 {[%emt 0:16:40]} Nfd7 {[%emt 0:01:44]} 12. Kb1 {[%emt 0:38:08]} Bb7 {[%emt 0:09:48]} 13. Qf2 {[%emt 0:00:59]} Rc8 {[%emt 0:03:03]} 14. h4 {[%emt 0:01:16]} Nc4 {[%emt 0:09:28]} 15. Bxc4 {[%emt 0:00:52]} Qxc4 {[%emt 0:00:33]} 16. g5 {[%emt 0:01:22]} b4 {[%emt 0:01:19]} 17. axb4 {[%emt 0:00:22]} Qxb4 {[%emt 0:00:06]} 18. Na2 {[%emt 0:01:49]} Qa4 {[%emt 0:04:54]} 19. h5 {[%emt 0:02:16]} Ne5 {[%emt 0:07:11]} 20. b3 {[%emt 0:04:45]} Qd7 {[%emt 0:25:22]} 21. Qg2 {[%emt 0:03:01]} a5 {[%emt 0:03:36]} 22. f4 {[%emt 0:00:29]} Nc6 {[%emt 0:00:37]} 23. Nc3 {[%emt 0:05:36]} Nb4 {[%emt 0:05:09]} 24. Kb2 {[%emt 0:00:22]} d5 {[%emt 0:03:22]} 25. e5 {[%emt 0:01:29]} Nc6 {[%emt 0:04:13]} 26. g6 {[%emt 0:01:19]} hxg6 {[%emt 0:00:34]} 27. hxg6 {[%emt 0:00:07]} Rxh1 {[%emt 0:00:06]} 28. gxf7+ {[%emt 0:00:31]} Qxf7 {[%emt 0:00:13]} 29. Rxh1 {[%emt 0:01:30]} Nxd4 {[%emt 0:00:12]} 30. Bxd4 {[%emt 0:00:07]} Kd7 {[%emt 0:04:10]} 31. Qf1 {[%emt 0:03:16]} Bc6 {[%emt 0:01:45]} 32. Qd3 {[%emt 0:02:57]} Rb8 {[%emt 0:02:19]} 33. Ra1 {[%emt 0:01:54]} Bb4 {[%emt 0:01:01]} 34. Qe3 {[%emt 0:00:58]} Qe7 {[%emt 0:01:01]} 35. Na4 {[%emt 0:00:31]} Bxa4 {[%emt 0:01:00]} 36. Rxa4 {[%emt 0:00:03]} Rb5 {[%emt 0:01:08]} 37. Qg1 {[%emt 0:01:24]} Qf7 {[%emt 0:01:45]} 38. Qg4 {[%emt 0:01:33]} g6 {[%emt 0:00:25]} 39. Ra1 {[%emt 0:00:16]} Qf5 {[%emt 0:00:28]} 40. Qe2 {[%emt 0:01:24]} Kc6 {[%emt 0:00:21]} 41. Qe3 {[%emt 0:30:24]} Rb8 {[%emt 0:06:20]} 42. c3 {[%emt 0:00:00]} Be7 {[%emt 0:06:18]} 43. Rxa5 {[%emt 0:00:00]} Rxb3+ {[%emt 0:01:12]} 0-1

[Event "CZE-ch 2020"]
[Site "Pilsen"]
[Date "2020.08.26"]
[Round "4.2"]
[White "Laznicka, Viktor"]
[Black "Finek, Vaclav"]
[Result "1-0"]
[ECO "A11"]
[WhiteElo "2638"]
[BlackElo "2344"]
[Annotator "ChessBase"]
[PlyCount "105"]
[EventDate "2020.08.23"]
[EventType "swiss"]
[EventCountry "CZE"]
[SourceTitle "playchess.com"]
[Source "ChessBase"]
[SourceQuality "1"]
[TimeControl "40/5400+30:1800+30"]

1. c4 {[%emt 0:13:17]} c6 {[%emt 0:00:00]} 2. Nf3 {[%emt 0:01:26]} Nf6 {[%emt 0:00:00]} 3. b3 {[%emt 0:00:25]} g6 {[%emt 0:03:55]} 4. Bb2 {[%emt 0:01:27]} Bg7 {[%emt 0:00:18]} 5. g3 {[%emt 0:01:02]} O-O {[%emt 0:02:34]} 6. Bg2 {[%emt 0:00:08]} d5 {[%emt 0:00:52]} 7. O-O {[%emt 0:01:39]} Bg4 {[%emt 0:02:14]} 8. d3 {[%emt 0:02:05]} Nbd7 {[%emt 0:01:35]} 9. Nbd2 {[%emt 0:02:02]} a5 {[%emt 0:02:36]} 10. a3 {[%emt 0:00:40]} Qb6 {[%emt 0:01:54]} 11. Rb1 {[%emt 0:00:25]} Rac8 {[%emt 0:01:35]} 12. h3 {[%emt 0:01:50]} Bxf3 {[%emt 0:00:20]} 13. Nxf3 {[%emt 0:00:06]} Rfd8 {[%emt 0:00:39]} 14. Qc2 {[%emt 0:02:12]} Qc7 {[%emt 0:04:27]} 15. Rfc1 {[%emt 0:01:55]} Qd6 {[%emt 0:05:11]} 16. Qd2 {[%emt 0:10:06]} b6 {[%emt 0:08:09]} 17. d4 {[%emt 0:11:11]} Ne4 {[%emt 0:03:53]} 18. Qf4 {[%emt 0:01:08]} Qf6 {[%emt 0:07:19]} 19. Qxf6 {[%emt 0:03:36]} Bxf6 {[%emt 0:04:36]} 20. a4 {[%emt 0:04:26]} e6 {[%emt 0:03:33]} 21. Rc2 {[%emt 0:04:14]} dxc4 {[%emt 0:08:01]} 22. bxc4 {[%emt 0:01:54]} Nd6 {[%emt 0:07:18]} 23. Ne5 {[%emt 0:14:16]} Bxe5 {[%emt 0:10:58]} 24. dxe5 {[%emt 0:00:38]} Nb7 {[%emt 0:00:06]} 25. Ba3 {[%emt 0:03:40]} Nxe5 {[%emt 0:04:31]} 26. Rxb6 {[%emt 0:06:55]} Rd1+ {[%emt 0:00:10]} 27. Kh2 {[%emt 0:00:07]} Nd6 {[%emt 0:00:07]} 28. Bxd6 {[%emt 0:01:05]} Rxd6 {[%emt 0:00:25]} 29. f4 {[%emt 0:00:22]} Nd7 {[%emt 0:00:24]} 30. Ra6 {[%emt 0:01:08]} Rd4 {[%emt 0:07:36]} 31. Rxa5 {[%emt 0:01:10]} Nb6 {[%emt 0:01:29]} 32. Ra6 {[%emt 0:00:23]} Nxc4 {[%emt 0:01:36]} 33. Rxc6 {[%emt 0:00:09]} Rxc6 {[%emt 0:00:03]} 34. Bxc6 {[%emt 0:00:08]} Na5 {[%emt 0:01:30]} 35. Bb5 {[%emt 0:00:15]} Rd8 {[%emt 0:00:04]} 36. Rc7 {[%emt 0:00:57]} Ra8 {[%emt 0:00:08]} 37. Kg2 {[%emt 0:00:31]} Nb3 {[%emt 0:01:37]} 38. e3 {[%emt 0:02:08]} Rd8 {[%emt 0:03:08]} 39. g4 {[%emt 0:00:30]} Kf8 {[%emt 0:01:02]} 40. g5 {[%emt 0:00:23]} Rd1 {[%emt 0:03:35]} 41. Kf2 {[%emt 0:33:34]} Rd8 {[%emt 0:07:04]} 42. Rc3 {[%emt 0:00:00]} Na5 {[%emt 0:01:36]} 43. Kf3 {[%emt 0:00:00]} Kg7 {[%emt 0:01:37]} 44. Rd3 {[%emt 0:00:00]} Ra8 {[%emt 0:01:39]} 45. Ke4 {[%emt 0:00:00]} Nb7 {[%emt 0:04:42]} 46. Kd4 {[%emt 0:00:00]} Nd6 {[%emt 0:00:26]} 47. Kc5 {[%emt 0:00:00]} Ne4+ {[%emt 0:01:53]} 48. Kb6 {[%emt 0:00:00]} h6 {[%emt 0:02:37]} 49. Bc6 {[%emt 0:00:00]} Rb8+ {[%emt 0:00:07]} 50. Kc7 {[%emt 0:00:00]} Nc5 {[%emt 0:01:51]} 51. Kxb8 {[%emt 0:00:00]} Nxd3 {[%emt 0:00:06]} 52. a5 {[%emt 0:00:00]} f6 {[%emt 0:01:56]} 53. h4 {[%emt 0:00:00]} 1-0

[Event "CZE-ch 2020"]
[Site "Pilsen"]
[Date "2020.08.26"]
[Round "4.4"]
[White "Nguyen, Thai Dai Van"]
[Black "Orsag, Milan"]
[Result "1-0"]
[ECO "D34"]
[WhiteElo "2569"]
[BlackElo "2300"]
[Annotator "ChessBase"]
[PlyCount "55"]
[EventDate "2020.08.23"]
[EventType "swiss"]
[EventCountry "CZE"]
[SourceTitle "playchess.com"]
[Source "ChessBase"]
[SourceQuality "1"]
[TimeControl "40/5400+30:1800+30"]

1. d4 {[%emt 0:00:00]} d5 {[%emt 0:00:36]} 2. c4 {[%emt 0:00:00]} e6 {[%emt 0:00:23]} 3. Nc3 {[%emt 0:00:04]} c5 {[%emt 0:00:26]} 4. cxd5 {[%emt 0:00:12]} exd5 {[%emt 0:00:07]} 5. Nf3 {[%emt 0:00:10]} Nc6 {[%emt 0:00:09]} 6. g3 {[%emt 0:00:14]} Nf6 {[%emt 0:00:08]} 7. Bg2 {[%emt 0:00:04]} Be7 {[%emt 0:00:09]} 8. O-O {[%emt 0:00:08]} O-O {[%emt 0:00:06]} 9. Bg5 {[%emt 0:00:49]} cxd4 {[%emt 0:00:26]} 10. Nxd4 {[%emt 0:00:07]} h6 {[%emt 0:00:10]} 11. Be3 {[%emt 0:00:34]} Re8 {[%emt 0:00:43]} 12. Rc1 {[%emt 0:00:43]} Bf8 {[%emt 0:01:43]} 13. a3 {[%emt 0:00:21]} Bg4 {[%emt 0:04:38]} 14. Qb3 {[%emt 0:00:30]} Na5 {[%emt 0:07:36]} 15. Qa2 {[%emt 0:00:06]} Be6 {[%emt 0:10:35]} 16. Rfd1 {[%emt 0:10:15]} Nc4 {[%emt 0:15:53]} 17. Nxe6 {[%emt 0:08:12]} fxe6 {[%emt 0:00:10]} 18. Nxd5 {[%emt 0:00:52]} Nxe3 {[%emt 0:06:45]} 19. Nxe3 {[%emt 0:00:15]} Qb6 {[%emt 0:00:36]} 20. Nc4 {[%emt 0:01:45]} Qb5 {[%emt 0:02:06]} 21. b4 {[%emt 0:00:44]} Rad8 {[%emt 0:01:57]} 22. Rxd8 {[%emt 0:05:47]} Rxd8 {[%emt 0:00:37]} 23. Na5 {[%emt 0:00:32]} b6 {[%emt 0:13:32]} 24. Qxe6+ {[%emt 0:05:49]} Kh7 {[%emt 0:00:23]} 25. Qc4 {[%emt 0:05:17]} Qa4 {[%emt 0:06:42]} 26. Qb3 {[%emt 0:02:09]} Qb5 {[%emt 0:00:27]} 27. Qc2+ {[%emt 0:00:32]} Kh8 {[%emt 0:00:34]} 28. Nc6 {[%emt 0:00:46]} 1-0

[Event "CZE-ch 2020"]
[Site "Pilsen"]
[Date "2020.08.26"]
[Round "4.5"]
[White "Rabatin, Jakub"]
[Black "Polak, Tomas"]
[Result "0-1"]
[ECO "A47"]
[WhiteElo "2291"]
[BlackElo "2563"]
[Annotator "ChessBase"]
[PlyCount "72"]
[EventDate "2020.08.23"]
[EventType "swiss"]
[EventCountry "CZE"]
[SourceTitle "playchess.com"]
[Source "ChessBase"]
[SourceQuality "1"]
[TimeControl "40/5400+30:1800+30"]

1. Nf3 {[%emt 0:00:00]} Nf6 {[%emt 0:00:27]} 2. d4 {[%emt 0:00:00]} b6 {[%emt 0:01:24]} 3. c4 {[%emt 0:00:11]} Bb7 {[%emt 0:00:16]} 4. Nc3 {[%emt 0:02:05]} e6 {[%emt 0:00:40]} 5. a3 {[%emt 0:02:15]} g6 {[%emt 0:02:07]} 6. d5 {[%emt 0:20:23]} Bg7 {[%emt 0:01:16]} 7. e4 {[%emt 0:00:10]} O-O {[%emt 0:02:24]} 8. Bd3 {[%emt 0:03:45]} d6 {[%emt 0:00:33]} 9. dxe6 {[%emt 0:01:50]} fxe6 {[%emt 0:00:30]} 10. O-O {[%emt 0:00:12]} Nbd7 {[%emt 0:01:59]} 11. Bc2 {[%emt 0:19:01]} Nc5 {[%emt 0:08:47]} 12. Ng5 {[%emt 0:04:47]} Nfd7 {[%emt 0:16:46]} 13. Qg4 {[%emt 0:14:14]} Qf6 {[%emt 0:06:14]} 14. Nb5 {[%emt 0:01:15]} Ne5 {[%emt 0:04:31]} 15. Qe2 {[%emt 0:01:39]} h6 {[%emt 0:04:31]} 16. Nh3 {[%emt 0:04:25]} a6 {[%emt 0:04:39]} 17. Nc3 {[%emt 0:00:13]} Qh4 {[%emt 0:12:15]} 18. f4 {[%emt 0:04:46]} Nc6 {[%emt 0:01:52]} 19. Be3 {[%emt 0:05:09]} Nd4 {[%emt 0:02:28]} 20. Qd1 {[%emt 0:00:40]} Nxc2 {[%emt 0:08:24]} 21. Qxc2 {[%emt 0:00:05]} Rae8 {[%emt 0:00:52]} 22. Rad1 {[%emt 0:04:40]} Bxc3 {[%emt 0:03:33]} 23. Bxc5 {[%emt 0:00:04]} Bg7 {[%emt 0:00:11]} 24. Bf2 {[%emt 0:05:07]} Qh5 {[%emt 0:07:06]} 25. c5 {[%emt 0:00:17]} bxc5 {[%emt 0:01:39]} 26. e5 {[%emt 0:03:49]} Bd5 {[%emt 0:00:45]} 27. Bg3 {[%emt 0:00:33]} Qf5 {[%emt 0:00:38]} 28. Qe2 {[%emt 0:01:13]} Rb8 {[%emt 0:01:30]} 29. Nf2 {[%emt 0:00:32]} a5 {[%emt 0:01:08]} 30. Rd2 {[%emt 0:00:38]} Rb3 {[%emt 0:03:15]} 31. Re1 {[%emt 0:00:41]} h5 {[%emt 0:00:52]} 32. Rxd5 {[%emt 0:00:43]} exd5 {[%emt 0:00:11]} 33. Qd1 {[%emt 0:00:20]} Rxb2 {[%emt 0:00:45]} 34. Qxd5+ {[%emt 0:00:06]} Kh8 {[%emt 0:00:14]} 35. Ne4 {[%emt 0:00:53]} dxe5 {[%emt 0:00:43]} 36. fxe5 {[%emt 0:00:42]} Re2 {[%emt 0:00:28]} 0-1